Cogmind - Beta 13 @@@ ROGUE MODE // 2024.04.11 @ 22:30:25 Player: Mogwok Wargfriend Result: Destroyed by X-57 Shotgunner with High-powered Shotgun Performance ------------- Evolutions (2) 1000 Regions Visited (3) 600 Robots Destroyed (55) 275 Value Destroyed (1139) 1139 Prototype IDs (1) 20 Alien Tech Used (0) 0 Bonus (0) 0 TOTAL SCORE: 3034 Bonus ------- None Cogmind --------- Core Integrity 0/550 Matter 260/300 Energy 94/100 System Corruption 0% Temperature Cool (9) Movement Core (200) Ox3 Location -8/Materials Parts ------- > --- POWER (1) -------- (None) > --- PROPULSION (2) --- (None) > --- UTILITY (6) ------ Improved Light Armor Plating Improved Light Armor Plating Improved Light Armor Plating Hacking Suite > --- WEAPON (2) ------- Katana > --- INVENTORY (5) ---- Improved Ion Engine Aluminum Leg Medium Storage Unit High-capacity Matter Pod (168) Improved Sensor Array Peak State ------------ > --- POWER ------------ Deuterium Engine > --- PROPULSION ------- Armored Wheel Armored Wheel > --- UTILITY ---------- Medium Storage Unit Advanced Visual Processing Unit Improved Sensor Array Signal Interpreter Medium Armor Plating Hacking Suite > --- WEAPON ----------- Autogun Autogun > --- INVENTORY -------- Improved Ion Engine Improved Ion Engine Aluminum Leg Compact Wheel Compact Wheel High-capacity Matter Pod Improved Sensor Array Autogun Autogun [Rating: 25] Favorites ----------- Power Ion Engine Engine Ion Engine Propulsion Compact Wheel Wheel Compact Wheel Utility Improved Terrain Scanner Device Improved Terrain Scanner Storage Medium Storage Unit Processor Signal Interpreter Hackware Hacking Suite Protection Medium Armor Plating Weapon Medium Laser Energy Gun Medium Laser Energy Cannon Beam Cannon Ballistic Gun Autogun Slashing Weapon Katana Build | -11 -10 -9 -8 ------- Run | Yrd Mat Mat Mat Slots Evolved 4 | . . 2 2 Power . | . . . . Propulsion . | . . . . Utility 4 | . . 2 2 Weapon . | . . . . Parts Attached 47 | 7 6 22 12 Power 6 | 1 1 2 2 Engine 6 | 1 1 2 2 Core . | . . . . Reactor . | . . . . Propulsion 12 | 2 1 7 2 Treads . | . . . . Leg . | . . . . Wheel 12 | 2 1 7 2 Hover . | . . . . Flight . | . . . . Utility 14 | 2 2 5 5 Device 2 | 1 . 1 . Storage 3 | 1 2 . . Processor 4 | . . 4 . Hackware 1 | . . . 1 Protection 4 | . . . 4 Artifact . | . . . . Weapon 15 | 2 2 8 3 Energy Gun 3 | 1 . 2 . Energy Cannon 1 | . . 1 . Ballistic Gun 10 | 1 2 5 2 Ballistic Cannon . | . . . . Launcher . | . . . . Special Weapon . | . . . . Impact Weapon . | . . . . Slashing Weapon 1 | . . . 1 Piercing Weapon . | . . . . Special Melee Weapon . | . . . . Unidentified Prototypes 1 | . . 1 . Parts Lost 15 | . 1 1 13 Power 2 | . 1 . 1 Propulsion 4 | . . . 4 Utility 4 | . . . 4 Weapon 5 | . . 1 4 Highest Loss Streak 13 | . 1 1 13 To Critical Strikes . | . . . . Average Slot Usage (%) 97 | . 100 97 82 Engine 12 | . 14 11 7 Wheel 24 | . 28 21 14 Device 12 | . 14 10 6 Storage 12 | . 14 11 7 Processor 10 | . . 20 14 Energy Gun 8 | . 14 5 . Ballistic Gun 14 | . 14 15 14 Naked Turns . | . . . . Heaviest Build 33 | 14 20 24 33 Greatest Support 32 | 26 26 32 32 Greatest Overweight (x) 5 | 4 . 1 5 Average Overweight (x) . | . . . . Largest Inventory Capacity 10 | 8 10 10 10 Average Capacity 9 | 7 8 10 9 Most Carried 10 | 7 10 10 10 Average Carried 8 | 4 8 9 7 Final Capacity 10 | 8 10 10 5 Final Carried 10 | 7 10 10 5 Class Distribution -------------------- 62% | Mutant 22% | Scavenger-Mutant 14% | Skirmisher Dominant Class ---------------- Mutant | -10/Materials Scavenger-Mutant | -9/Materials Skirmisher | -8/Materials Resources | -11 -10 -9 -8 ----------- Run | Yrd Mat Mat Mat Matter Collected 1455 | 276 275 710 194 Remotely . | . . . . Salvage Created 1777 | 123 463 970 221 Parts 129 | 8 34 78 9 Haulers Intercepted 2 | . . 2 . Recyclers Shooed 5 | . 2 3 . Parts Field Recycled . | . . . . Retrieved Matter . | . . . . Parts Self-Destructed . | . . . . Prevented . | . . . . Kills | -11 -10 -9 -8 ------- Run | Yrd Mat Mat Mat Combat Hostiles Destroyed 32 | . 11 15 6 Melee 1 | . . . 1 Guns 30 | . 11 14 5 Classes Destroyed 12 | 2 5 4 1 Worker 1 | . 1 . . Builder 3 | . . 3 . Tunneler 4 | 3 . 1 . Hauler 2 | . . 2 . Recycler 3 | 1 1 1 . Mechanic 1 | . . 1 . Operator 3 | . 1 2 . Watcher 6 | . 2 4 . Swarmer 12 | . 6 3 3 Grunt 15 | . 5 9 1 Sentry 4 | . . 3 1 Specialist 1 | . . . 1 Best Kill Streak 6 | 3 6 5 3 Combat Bots Only 3 | . 3 3 3 Max Kills in Single Turn 2 | 1 1 2 1 Gunslinging 1 | . . 1 . Exploded . | . . . . Melee 1 | . . . 1 Uniques/NPCs Destroyed . | . . . . Combat | -11 -10 -9 -8 -------- Run | Yrd Mat Mat Mat Hostile Shots Fired 269 | . 55 44 170 Missed 79 | . 18 12 49 Damage Taken 2612 | . 375 346 1891 Core 750 | . 115 82 553 Absorbed by Shields . | . . . . Regen/Repaired (Parts) 27 | . . 27 . Core Remaining (%) 77 | 100 54 79 . Volleys Fired 170 | 6 65 84 15 Largest 2 | 2 2 2 2 Hottest 88 | 70 70 88 46 Shots Fired 332 | 12 130 164 26 Gun 322 | 12 130 154 26 Cannon 10 | . . 10 . Launcher . | . . . . Special . | . . . . Kinetic 211 | 6 65 114 26 Thermal 121 | 6 65 50 . Explosive . | . . . . Electromagnetic . | . . . . Robot Hit Streak 14 | 5 10 14 14 Robot Miss Streak 7 | 1 4 7 1 Penetration Max . | . . . . Secondary Targets 4 | . 1 3 . Max Gunslinging Chain 1 | . 1 1 . Shots Hit Robots 213 | 9 77 103 24 Core Hits 82 | 5 30 38 9 Critical Kills 1 | . 1 . . Critical Parts Destroyed . | . . . . Critical Strikes 4 | . 2 2 . Burn 3 | . 1 2 . Destroy 1 | . 1 . . Melee Attacks 4 | . . . 4 Impact . | . . . . Slashing 4 | . . . 4 Piercing . | . . . . Sneak Attacks . | . . . . Combat Hostiles . | . . . . Follow-up Attacks . | . . . . Damage Inflicted 2870 | 93 775 1577 425 Guns 2644 | 93 775 1452 324 Cannons 125 | . . 125 . Explosions . | . . . . Melee 101 | . . . 101 Ramming . | . . . . Kinetic 1642 | 31 221 1066 324 Thermal 1127 | 62 554 511 . Explosive . | . . . . Electromagnetic . | . . . . Impact . | . . . . Slashing 101 | . . . 101 Piercing . | . . . . Highest Corruption . | . . . . Average Corruption . | . . . . Corruption Purged . | . . . . Corruption Blocked . | . . . . Overload Shots . | . . . . Overflow Damage 2 | . . 2 . Projectiles 2 | . . 2 . Explosions . | . . . . Melee . | . . . . Knockbacks . | . . . . Impact . | . . . . Kinetic . | . . . . Secondary . | . . . . Self-Inflicted Damage . | . . . . Shots . | . . . . Rammed . | . . . . Targets Rammed . | . . . . Kicked . | . . . . Crushed . | . . . . Highest Temperature 230 | 40 230 111 22 Average Temperature 55 | 21 89 21 5 Received Heat Transfer 552 | . 123 159 270 Siege Activations . | . . . . Robots Corrupted . | . . . . Combat Hostiles . | . . . . Parts Fried . | . . . . Impact Corruptions . | . . . . Robots Melted 1 | . . 1 . Combat Hostiles 1 | . . 1 . Parts Melted 2 | . 1 1 . Heat Transferred 3330 | 185 1702 1443 . Parts Sabotaged . | . . . . Parts Stolen . | . . . . Parts Stripped . | . . . . Power Chain Reactions . | . . . . Alert | -11 -10 -9 -8 ------- Run | Yrd Mat Mat Mat Peak Influence 316 | 20 316 233 196 Initial 72 | . 13 8 72 Average 76 | 7 53 97 109 Maximum Alert Level 1 | . 1 1 . Low Security (%) 91 | 100 90 90 100 Level 1 8 | . 9 9 . Level 2 . | . . . . Level 3 . | . . . . Level 4 . | . . . . Level 5 . | . . . . High Security . | . . . . Max Security . | . . . . Squads Dispatched 10 | . 4 2 4 Investigation 2 | . 2 . . Extermination . | . . . . Reinforcement 6 | . 2 2 2 Assault . | . . . . Garrison 2 | . . . 2 Intercept . | . . . . Searches Triggered . | . . . . Construction Impeded . | . . . . Haulers Reinforced . | . . . . Active Scanning Responses . | . . . . Cargo Convoy Interrupts . | . . . . Stealth | -11 -10 -9 -8 --------- Run | Yrd Mat Mat Mat Distress Signals 4 | . 2 2 . Communications Jammed . | . . . . Distress Signals . | . . . . Times Spotted 69 | . 24 29 16 Peak Tracking Total 10 | . 5 6 10 Tactical Retreats 3 | . 2 . 1 Traps | -11 -10 -9 -8 ------- Run | Yrd Mat Mat Mat Traps Triggered 2 | . 2 . . Indirectly . | . . . . Trap Hack Attempts . | . . . . Triggered . | . . . . Disarmed . | . . . . Reprogrammed . | . . . . Reused . | . . . . Traps Extracted . | . . . . Installed . | . . . . Triggered . | . . . . Machines | -11 -10 -9 -8 ---------- Run | Yrd Mat Mat Mat Machines Disabled 1 | . . 1 . Max in Single Turn 1 | . . 1 . Machines Repaired . | . . . . Machines Dismantled . | . . . . Machines Sabotaged . | . . . . Overloaded Fab Kills . | . . . . Hacking | -11 -10 -9 -8 --------- Run | Yrd Mat Mat Mat Machines Accessed 15 | . 5 8 2 Terminals 12 | . 5 6 1 Fabricators . | . . . . Repair Stations 1 | . . 1 . Recycling Units . | . . . . Scanalyzers 1 | . . 1 . Garrison Access 1 | . . . 1 Total Hacks 57 | . 24 29 4 Successful 35 | . 14 19 2 Failed 21 | . 10 9 2 Catastrophic 2 | . 1 1 . Database Lockouts 1 | . . 1 . Manual 37 | . 23 12 2 Terminals 40 | . 24 14 2 Fabricators . | . . . . Repair Stations 3 | . . 3 . Recycling Units . | . . . . Scanalyzers 12 | . . 12 . Garrison Access 2 | . . . 2 Terminal Hacks 10 | . 8 2 . Robot Analysis 5 | . 4 1 . Terminal Index 2 | . 1 1 . Alert Level 1 | . 1 . . Unreport Threat 2 | . 2 . . Fabricator Hacks . | . . . . Repair Station Hacks 2 | . . 2 . Scan Component 1 | . . 1 . Repair 1 | . . 1 . Recycling Unit Hacks . | . . . . Scanalyzer 12 | . . 12 . Insert Component 6 | . . 6 . Analyze 6 | . . 6 . Garrison Access Hacks . | . . . . Unauthorized Hacks 11 | . 6 3 2 Terminals 11 | . 6 3 2 Botnet 9 | . 5 3 1 Operators 2 | . 1 . 1 Fabricators . | . . . . Repair Stations . | . . . . Recycling Units . | . . . . Scanalyzers . | . . . . Garrison Access . | . . . . Data Cores Recovered . | . . . . Used . | . . . . Hacking Detections 14 | . 5 7 2 Full Trace Events 1 | . . . 1 Feedback Events . | . . . . Feedback Blocked . | . . . . Robot Schematics Acquired . | . . . . Robots Built . | . . . . Authchips . | . . . . Time . | . . . . Total Robot Build Rating . | . . . . Part Schematics Acquired 6 | . . 6 . Parts Built . | . . . . Authchips . | . . . . Time . | . . . . Total Part Build Rating . | . . . . Parts Repaired 1 | . . 1 . Time 32 | . . 32 . Parts Recycled . | . . . . Recycled Matter . | . . . . Retrieved Matter . | . . . . Retrieved Components . | . . . . Parts Scanalyzed 6 | . . 6 . Part Schematics Acquired 6 | . . 6 . Parts Damaged . | . . . . Bothacking | -11 -10 -9 -8 ------------ Run | Yrd Mat Mat Mat Used RIF Installer . | . . . . Robots Hacked . | . . . . Non-combat . | . . . . Combat . | . . . . Robot Hacks Applied . | . . . . Relay Couplers Released . | . . . . Fabnet Peak Effective % . | . . . . Robots Rewired . | . . . . Allies Hacked . | . . . . Hacks Repelled . | . . . . Allies | -11 -10 -9 -8 -------- Run | Yrd Mat Mat Mat Total Allies . | . . . . Largest Group . | . . . . Highest-Rated Group . | . . . . Highest-Rated Ally . | . . . . Total Orders . | . . . . Ally Attacks . | . . . . Total Damage . | . . . . Kills . | . . . . Allies Corrupted . | . . . . Allies Melted . | . . . . Intel | -11 -10 -9 -8 ------- Run | Yrd Mat Mat Mat Robot Analysis Total 4 | . 3 1 . Derelict Logs Recovered . | . . . . Drone Launches . | . . . . Drone Recoveries . | . . . . Exploration | -11 -10 -9 -8 ------------- Run | Yrd Mat Mat Mat Turns Passed 3914 | 138 1719 1752 305 Spaces Moved 2177 | 114 768 1042 253 Core 73 | 22 . . 51 Treads . | . . . . Legs . | . . . . Wheels 2104 | 92 768 1042 202 Hover . | . . . . Flight . | . . . . Fastest Speed 50 | 50 90 90 50 Average Speed 91 | 88 90 92 95 Slowest Speed 300 | 250 90 115 300 Overloaded Moves . | . . . . Propulsion Burnouts . | . . . . Robots Hopped . | . . . . Cave-ins Triggered . | . . . . Exploration Rate (%) 45 | 5 87 71 17 Regions Visited 3 Branch Regions . Pre-discovered Areas . | . . . . Known Exits Taken 1 | . . 1 . Unknown Exits Taken 2 | 1 1 . . Scrap Searched . | . . . . Spaces Dug . | . . . . Terrain Destroyed . | . . . . Melee . | . . . . Projectile . | . . . . AOE . | . . . . Terrain Rammed . | . . . . Walls Destroyed . | . . . . Machines Disabled . | . . . . Actions | -11 -10 -9 -8 --------- Run | Yrd Mat Mat Mat Total 3795 | 137 1681 1687 290 Wait 1343 | . 830 509 4 Move 2174 | 113 767 1041 253 Hop . | . . . . Pick Up 24 | 9 6 9 . Fast Attach 23 | 7 . 12 4 Attach 9 | . 1 1 7 Detach 2 | . . 1 1 Swap 15 | . 5 9 1 Drop 31 | 2 7 21 1 Fire 170 | 6 65 84 15 Melee 4 | . . . 4 Ram . | . . . . Kick . | . . . . Crush . | . . . . Escape Stasis . | . . . . Rewire . | . . . . Trap . | . . . . Miscellaneous . | . . . . Route ------- -11/Scrapyard -10/Materials (discovered 3 exits: *Mat x2 / [*Min]) -9/Materials (discovered 4 exits: *Mat x2 / [*Min] / *Sto) -8/Materials History --------- Turn | Location | Event 6 | -11/Scrapyard | Discovered new exit (range 15) 139 | -11/Scrapyard | Entered Materials 318 | -10/Materials | Build established: Mutant 1160 | -10/Materials | Discovered new exit (range 15) 1422 | -10/Materials | Discovered new exit (range 4) 1669 | -10/Materials | Discovered new exit (range 13) 1858 | -10/Materials | Entered another Materials area 1858 | -9/Materials | Evolved 2 slots: Utility x2 1981 | -9/Materials | Central database locked down 2055 | -9/Materials | Discovered new exit (range 16) 2358 | -9/Materials | Build established: Scavenger-Mutant 2594 | -9/Materials | Discovered new exit (range 15) 2652 | -9/Materials | Identified exit to Storage 3262 | -9/Materials | Build established: Mutant 3452 | -9/Materials | Repaired Arm. Wheel 3507 | -9/Materials | Discovered new exit (range 9) 3563 | -9/Materials | Discovered new exit (range 10) 3570 | -9/Materials | Identified exit to Materials 3579 | -9/Materials | Build established: Skirmisher 3610 | -9/Materials | Entered another Materials area 3610 | -8/Materials | Evolved 2 slots: Utility x2 3770 | -8/Materials | Garrison activated, responded to threat 3873 | -8/Materials | Core integrity fell below 50% 3895 | -8/Materials | Core integrity fell below 20% 3899 | -8/Materials | Lost 13 parts (1p4n4u4w) 3915 | -8/Materials | Destroyed by X-57 Shotgunner with High-powered Shotgun Last Messages --------------- 03865_ Com. Wheel destroyed. 03865_ Acquired 6 matter. 03866_ R-06 Scavenger collects Aluminum Leg. 03867_ Acquired 2 matter. 03868_ Com. Wheel destroyed. 03871_ K-01 Serf destroyed. 03871_ U-05 Engineer builds a Wall. 03872_ Dropped Imp. Ion Engine. 03873_ C-30 ARC bursts open, deploying its payload. 03873_ S-10 Pest unfolds itself. 03873_ Acquired 58 matter. 03874_ Acquired 18 matter. 03874_ Acquired 10 matter. 03875_ Acquired 7 matter. 03876_ Acquired 5 matter. 03876_ K-01 Serf collects debris. 03895_ Acquired Katana. 03898_ Acquired Imp. Light Armor Plating. 03909_ S-10 Pest destroyed. Map ----- +----------------------------------------------------+ | ????????????????????????????????????????????????? | | ????????????????????????????????????????????????? | | ????????????????????????????????????????????????? | | ????????????????????????????????????????????????? | | ????????????????????????????????????????????????? | | ????????????????????????????????????????????????? | | ????????????????????????????????????????????????? | | ????????????????????????????????????????????????? | | ????????????????????????????????????????????????? | | ????????????????????????????????????????????????? | | ????????????????????????????????????????????????? | | ????????????????????????????????????????????????? | | ????????????????????????????????????????????##?## | | ??????????????????????????????????????????###T## | | ??????????????????????????????????????????? | | ???????????????????????????????????o???????? | | ?????????????????????????????????????????????? | | ???????????????????????????????????????????????# | | ????????????????????????????????????????????????# | | ????????????????????????????????????????????????# | | ????????????????????????????????????????????????# | | ????????????????????#######?????????????????????# | | ????????????????????# = #?????????????????????# | | ????????????????????# #?????????#######?????# | | ????????????????????# !!!=#?????????# ####### | | ????????????????????# @x########### | | ????????????????????# !!sgg | | ????????????????????# s########+## | | ????????????????????# #????? # ####### | | ????????????????????#######??? /#######?????? | | ?????????????????????????????# """ #???????????? | | ?????????????????????????????# """ #???????????? | | ?????????????????????????????# """ !#???????????? | | ?????????????????????????????# #???????????? | | ?????????????????????????????########???????????? | | ????????????????????????????????????????????????? | | ????????????????????????????????????????????????? | | ????????????????????????????????????????????????? | | ????????????????????????????????????????????????? | | ????????????????????????????????????????????????? | | ????????????????????????????????????????????????? | | ????????????????????????????????????????????????? | | | | | | | | | | | | | | | | | +----------------------------------------------------+ Best States ------------- Heat Dissipation 31 Energy Generation 14 Energy Capacity 275 Matter Stores 300 Matter Capacity 300 Sight Range 20 Robot Scan Range 15 Terrain Scan Range 16 Terrain Scan Density 85 Armor Coverage 450 Evasion (%) 50 Offensive Hacking 10 Item Schematics ----------------- Hacking Suite | -9/Materials | Scanalyzed Autogun | -9/Materials | Scanalyzed Imp. Sensor Array | -9/Materials | Scanalyzed Arm. Wheel | -9/Materials | Scanalyzed Med. Armor Plating | -9/Materials | Scanalyzed Imp. Ion Engine | -9/Materials | Scanalyzed Robot Schematics ------------------ None Fabricated ------------ Nothing Alien Tech Used ----------------- None Achievements -------------- None Challenges ------------ None Game ------ Seed GhostNullExpander Manual? 0 Play Time 00:23:55 Cumulative 161.1 hours Start 2024.04.11 @ 22:09:02 End 2024.04.11 @ 22:30:25 Sessions 1 Manual Loads 0 Difficulty Rogue Special Mode None Game No. 154 Rogue 154 Adventurer 0 Explorer 0 Win Type - Total 0 Types 0/0/0/0/0/0/0/0/0 Lore% 53 Gallery% 64 Achievement% 44 Wizard Run 0 Options --------- Layout 2 ASCII 1 Keyboard 1 Movement Numpad Keybinds 0 Fullscreen 2 Font 32/TamsynBold Map View 50x44 Zoom Use 0% Tactical HUD 1 Map Filters NONE Filters NONE Steam 1 RUN: 997c6be7-8706-4b57-8f81-c12e0c63e659